[Event "Titled Tuesday Blitz October 12 2021"]
[White "Bortnyk, Olexandr"]
[Black "Babazada, Khazar"]
[WhiteFideId "14120828"]
[BlackFideId "13413554"]
[WhiteElo "2723"]
[BlackElo "2302"]
[Result "1-0"]
[Round "07"]
[TimeControl "180+1"]
[Date "2021.10.12"]
[WhiteClock "0:00:26"]
[BlackClock "0:00:45"]

1. e4 {[%clk 0:03:00]}  e5 {[%clk 0:03:00]} 2. Nf3 {[%clk 0:02:59]}  Nc6 {[%clk 0:03:00]} 3. Bb5 {[%clk 0:02:59]}  Nf6 {[%clk 0:02:59]} 4. d3 {[%clk 0:02:58]}  Bc5 {[%clk 0:02:56]} 5. O-O {[%clk 0:02:59]}  Nd4 {[%clk 0:02:52]} 6. Nxd4 {[%clk 0:02:59]}  Bxd4 {[%clk 0:02:50]} 7. Ba4 {[%clk 0:02:58]}  O-O {[%clk 0:02:49]} 8. c3 {[%clk 0:02:57]}  Bb6 {[%clk 0:02:49]} 9. Bg5 {[%clk 0:02:25]}  h6 {[%clk 0:02:49]} 10. Bh4 {[%clk 0:02:25]}  g5 {[%clk 0:02:44]} 11. Bg3 {[%clk 0:02:25]}  d6 {[%clk 0:02:45]} 12. Nd2 {[%clk 0:02:18]}  Bg4 {[%clk 0:02:39]} 13. Qe1 {[%clk 0:02:02]}  Nh5 {[%clk 0:02:39]} 14. Bd1 {[%clk 0:02:00]}  Qd7 {[%clk 0:02:30]} 15. a4 {[%clk 0:02:00]}  a6 {[%clk 0:02:27]} 16. Nc4 {[%clk 0:02:00]}  Ba7 {[%clk 0:02:23]} 17. Bxe5 {[%clk 0:01:57]}  b5 {[%clk 0:01:49]} 18. axb5 {[%clk 0:01:47]}  axb5 {[%clk 0:01:50]} 19. Rxa7 {[%clk 0:01:48]}  Rxa7 {[%clk 0:01:43]} 20. Ne3 {[%clk 0:01:49]}  Bxd1 {[%clk 0:01:37]} 21. Qxd1 {[%clk 0:01:50]}  dxe5 {[%clk 0:01:37]} 22. Qxh5 {[%clk 0:01:49]}  Ra6 {[%clk 0:01:38]} 23. Rd1 {[%clk 0:01:40]}  Kh7 {[%clk 0:01:30]} 24. h3 {[%clk 0:01:30]}  Rd8 {[%clk 0:01:28]} 25. d4 {[%clk 0:01:14]}  Qe6 {[%clk 0:01:26]} 26. d5 {[%clk 0:00:56]}  Qg6 {[%clk 0:01:24]} 27. Qf3 {[%clk 0:00:55]}  h5 {[%clk 0:01:18]} 28. g4 {[%clk 0:00:50]}  h4 {[%clk 0:01:17]} 29. Nf5 {[%clk 0:00:48]}  Qf6 {[%clk 0:01:11]} 30. Qe3 {[%clk 0:00:43]}  Ra2 {[%clk 0:01:08]} 31. Rd2 {[%clk 0:00:42]}  Kg6 {[%clk 0:00:57]} 32. Kg2 {[%clk 0:00:42]}  Qb6 {[%clk 0:00:48]} 33. Qf3 {[%clk 0:00:28]}  Rd7 {[%clk 0:00:48]} 34. Nxh4+ {[%clk 0:00:27]}  Kg7 {[%clk 0:00:45]} 35. Qf5 {[%clk 0:00:26]} 1-0


[Site "https://www.chess.com"]

[Event "Titled Tuesday Blitz October 12 2021"]
[White "Cabarkapa, Novak"]
[Black "Sviridov, Valery"]
[WhiteFideId "943746"]
[BlackFideId "4120680"]
[WhiteElo "2469"]
[BlackElo "2454"]
[Result "0-1"]
[Round "07"]
[TimeControl "180+1"]
[Date "2021.10.12"]
[WhiteClock "0:00:44"]
[BlackClock "0:01:28"]

1. d4 {[%clk 0:03:00]}  g6 {[%clk 0:02:59]} 2. e4 {[%clk 0:03:00]}  Bg7 {[%clk 0:02:59]} 3. Nc3 {[%clk 0:03:00]}  d6 {[%clk 0:03:00]} 4. Be3 {[%clk 0:03:00]}  a6 {[%clk 0:03:00]} 5. Nf3 {[%clk 0:03:00]}  b5 {[%clk 0:03:00]} 6. Bd3 {[%clk 0:03:01]}  Bb7 {[%clk 0:03:00]} 7. e5 {[%clk 0:03:01]}  Nd7 {[%clk 0:03:00]} 8. e6 {[%clk 0:03:01]}  fxe6 {[%clk 0:03:00]} 9. Ng5 {[%clk 0:03:02]}  Nf8 {[%clk 0:03:01]} 10. O-O {[%clk 0:03:02]}  Nh6 {[%clk 0:03:01]} 11. a4 {[%clk 0:02:53]}  b4 {[%clk 0:03:01]} 12. Nce4 {[%clk 0:02:49]}  Qd7 {[%clk 0:03:00]} 13. Qd2 {[%clk 0:02:42]}  a5 {[%clk 0:02:52]} 14. c3 {[%clk 0:02:35]}  bxc3 {[%clk 0:02:51]} 15. Qxc3 {[%clk 0:02:28]}  Nf5 {[%clk 0:02:49]} 16. Bb5 {[%clk 0:02:23]}  c6 {[%clk 0:02:49]} 17. Bc4 {[%clk 0:02:23]}  h6 {[%clk 0:02:48]} 18. Nf3 {[%clk 0:02:23]}  Nh7 {[%clk 0:02:43]} 19. Ne5 {[%clk 0:02:16]}  dxe5 {[%clk 0:02:41]} 20. Nc5 {[%clk 0:02:16]}  exd4 {[%clk 0:01:51]} 21. Qb3 {[%clk 0:02:14]}  Qd6 {[%clk 0:01:51]} 22. Qxb7 {[%clk 0:01:39]}  Rb8 {[%clk 0:01:46]} 23. Qa7 {[%clk 0:01:39]}  dxe3 {[%clk 0:01:42]} 24. Nxe6 {[%clk 0:01:33]}  exf2+ {[%clk 0:01:41]} 25. Rxf2 {[%clk 0:01:26]}  Be5 {[%clk 0:01:35]} 26. Rxf5 {[%clk 0:01:14]}  gxf5 {[%clk 0:01:33]} 27. Rf1 {[%clk 0:01:12]}  Ng5 {[%clk 0:01:30]} 28. Rxf5 {[%clk 0:00:39]}  Nxe6 {[%clk 0:01:29]} 29. Bxe6 {[%clk 0:00:40]}  Bd4+ {[%clk 0:01:29]} 30. Qxd4 {[%clk 0:00:41]}  Qxd4+ {[%clk 0:01:29]} 31. Kf1 {[%clk 0:00:41]}  Rxb2 {[%clk 0:01:29]} 32. Bf7+ {[%clk 0:00:41]}  Kd8 {[%clk 0:01:28]} 33. Bb3 {[%clk 0:00:42]}  Rxb3 {[%clk 0:01:28]} 34. Rd5+ {[%clk 0:00:42]}  Qxd5 {[%clk 0:01:27]} 35. h4 {[%clk 0:00:43]}  Qd2 {[%clk 0:01:28]} 36. h5 {[%clk 0:00:44]}  Rb1# {[%clk 0:01:28]} 0-1


[Site "https://www.chess.com"]

[Event "Titled Tuesday Blitz October 12 2021"]
[White "Deac, Bogdan-Daniel"]
[Black "Demchenko, Anton"]
[WhiteFideId "1226380"]
[BlackFideId "4160258"]
[WhiteElo "2605"]
[BlackElo "2583"]
[Result "1-0"]
[Round "07"]
[TimeControl "180+1"]
[Date "2021.10.12"]
[WhiteClock "0:00:03"]
[BlackClock "0:00:04"]

1. e4 {[%clk 0:03:00]}  e5 {[%clk 0:02:59]} 2. Nf3 {[%clk 0:03:00]}  Nc6 {[%clk 0:03:00]} 3. Bc4 {[%clk 0:02:59]}  Nf6 {[%clk 0:02:59]} 4. Ng5 {[%clk 0:02:57]}  d5 {[%clk 0:02:59]} 5. exd5 {[%clk 0:02:58]}  Na5 {[%clk 0:02:59]} 6. Bb5+ {[%clk 0:02:59]}  c6 {[%clk 0:03:00]} 7. dxc6 {[%clk 0:03:00]}  bxc6 {[%clk 0:03:01]} 8. Bd3 {[%clk 0:03:00]}  Nd5 {[%clk 0:03:01]} 9. Nf3 {[%clk 0:03:01]}  Bd6 {[%clk 0:03:02]} 10. O-O {[%clk 0:03:01]}  O-O {[%clk 0:03:02]} 11. Re1 {[%clk 0:03:02]}  f5 {[%clk 0:03:02]} 12. Nxe5 {[%clk 0:03:02]}  Qf6 {[%clk 0:03:03]} 13. Nf3 {[%clk 0:03:02]}  g5 {[%clk 0:03:03]} 14. c4 {[%clk 0:03:02]}  Nf4 {[%clk 0:03:03]} 15. Bf1 {[%clk 0:03:03]}  g4 {[%clk 0:03:03]} 16. d4 {[%clk 0:03:03]}  gxf3 {[%clk 0:03:03]} 17. Qxf3 {[%clk 0:03:04]}  Ne6 {[%clk 0:03:02]} 18. Qc3 {[%clk 0:03:04]}  Qh4 {[%clk 0:02:43]} 19. h3 {[%clk 0:02:49]}  c5 {[%clk 0:02:39]} 20. Qxa5 {[%clk 0:02:25]}  Nxd4 {[%clk 0:02:35]} 21. Be3 {[%clk 0:02:17]}  Bb7 {[%clk 0:01:08]} 22. Bxd4 {[%clk 0:01:49]}  Qxd4 {[%clk 0:00:59]} 23. Qd2 {[%clk 0:01:23]}  Qf6 {[%clk 0:00:58]} 24. Nc3 {[%clk 0:01:22]}  Rad8 {[%clk 0:00:58]} 25. Nd5 {[%clk 0:01:21]}  Qg7 {[%clk 0:00:58]} 26. Re6 {[%clk 0:01:08]}  Bc8 {[%clk 0:00:50]} 27. Rxd6 {[%clk 0:00:29]}  Rxd6 {[%clk 0:00:49]} 28. Rd1 {[%clk 0:00:30]}  Kh8 {[%clk 0:00:43]} 29. Qe3 {[%clk 0:00:26]}  f4 {[%clk 0:00:39]} 30. Qxc5 {[%clk 0:00:25]}  Rg6 {[%clk 0:00:38]} 31. Nxf4 {[%clk 0:00:20]}  Rg5 {[%clk 0:00:21]} 32. Qe3 {[%clk 0:00:19]}  Rgf5 {[%clk 0:00:19]} 33. Rd4 {[%clk 0:00:16]}  Qf6 {[%clk 0:00:15]} 34. g3 {[%clk 0:00:12]}  Re5 {[%clk 0:00:14]} 35. Qd2 {[%clk 0:00:12]}  Qe7 {[%clk 0:00:12]} 36. Nd5 {[%clk 0:00:10]}  Qg7 {[%clk 0:00:11]} 37. h4 {[%clk 0:00:07]}  Rfe8 {[%clk 0:00:11]} 38. Ne3 {[%clk 0:00:08]}  Bb7 {[%clk 0:00:08]} 39. Rg4 {[%clk 0:00:05]}  Qf6 {[%clk 0:00:06]} 40. Rf4 {[%clk 0:00:05]}  Qe6 {[%clk 0:00:06]} 41. Kh2 {[%clk 0:00:04]}  Qe7 {[%clk 0:00:04]} 42. Qd4 {[%clk 0:00:04]}  Rd8 {[%clk 0:00:04]} 43. Qc3 {[%clk 0:00:04]}  Kg8 {[%clk 0:00:03]} 44. Rg4+ {[%clk 0:00:04]}  Kf8 {[%clk 0:00:04]} 45. Bg2 {[%clk 0:00:04]}  Bxg2 {[%clk 0:00:03]} 46. Kxg2 {[%clk 0:00:04]}  Re6 {[%clk 0:00:02]} 47. Qh8+ {[%clk 0:00:03]}  Kf7 {[%clk 0:00:03]} 48. Rg7+ {[%clk 0:00:04]}  Kf6 {[%clk 0:00:04]} 49. Ng4+ {[%clk 0:00:04]}  Kf5 {[%clk 0:00:04]} 50. Qxh7+ {[%clk 0:00:03]} 1-0


[Site "https://www.chess.com"]

[Event "Titled Tuesday Blitz October 12 2021"]
[White "Ibrahimli, Murad"]
[Black "Cunha, Lucas Aguiar"]
[WhiteFideId "13410229"]
[BlackFideId "2125404"]
[WhiteElo "2109"]
[BlackElo "2361"]
[Result "0-1"]
[Round "07"]
[TimeControl "180+1"]
[Date "2021.10.12"]
[WhiteClock "0:00:08"]
[BlackClock "0:00:16"]

1. d4 {[%clk 0:03:00]}  Nf6 {[%clk 0:02:59]} 2. c4 {[%clk 0:03:01]}  e6 {[%clk 0:02:57]} 3. g3 {[%clk 0:03:01]}  d5 {[%clk 0:02:56]} 4. Bg2 {[%clk 0:03:01]}  dxc4 {[%clk 0:02:57]} 5. Nf3 {[%clk 0:03:01]}  c5 {[%clk 0:02:57]} 6. O-O {[%clk 0:03:01]}  Nc6 {[%clk 0:02:57]} 7. Ne5 {[%clk 0:03:01]}  Bd7 {[%clk 0:02:57]} 8. Na3 {[%clk 0:02:58]}  cxd4 {[%clk 0:02:57]} 9. Naxc4 {[%clk 0:02:58]}  Rc8 {[%clk 0:02:56]} 10. Bf4 {[%clk 0:02:57]}  Nxe5 {[%clk 0:02:37]} 11. Nxe5 {[%clk 0:02:55]}  Bc6 {[%clk 0:02:36]} 12. Nxc6 {[%clk 0:02:47]}  bxc6 {[%clk 0:02:37]} 13. Rc1 {[%clk 0:02:48]}  Qd7 {[%clk 0:02:30]} 14. Qa4 {[%clk 0:02:12]}  c5 {[%clk 0:02:28]} 15. Qa6 {[%clk 0:02:07]}  Nd5 {[%clk 0:02:28]} 16. Be5 {[%clk 0:01:48]}  Rc6 {[%clk 0:02:14]} 17. Qc4 {[%clk 0:01:27]}  Rb6 {[%clk 0:02:10]} 18. a3 {[%clk 0:01:11]}  f6 {[%clk 0:02:01]} 19. Bf4 {[%clk 0:01:11]}  Rxb2 {[%clk 0:01:34]} 20. Rb1 {[%clk 0:01:08]}  Rb6 {[%clk 0:01:34]} 21. Bd2 {[%clk 0:01:07]}  Be7 {[%clk 0:01:29]} 22. Ba5 {[%clk 0:01:05]}  Rxb1 {[%clk 0:01:20]} 23. Rxb1 {[%clk 0:01:06]}  Kf7 {[%clk 0:01:18]} 24. Bh3 {[%clk 0:01:01]}  f5 {[%clk 0:01:11]} 25. Bg2 {[%clk 0:00:47]}  Rc8 {[%clk 0:01:06]} 26. h4 {[%clk 0:00:43]}  Qc6 {[%clk 0:00:58]} 27. h5 {[%clk 0:00:30]}  Bd6 {[%clk 0:00:55]} 28. Bf3 {[%clk 0:00:28]}  Rb8 {[%clk 0:00:54]} 29. Rc1 {[%clk 0:00:27]}  Rb5 {[%clk 0:00:38]} 30. Bd2 {[%clk 0:00:22]}  Qb7 {[%clk 0:00:38]} 31. Rc2 {[%clk 0:00:15]}  Rb1+ {[%clk 0:00:29]} 32. Kg2 {[%clk 0:00:15]}  Qb3 {[%clk 0:00:28]} 33. Qxb3 {[%clk 0:00:13]}  Rxb3 {[%clk 0:00:28]} 34. a4 {[%clk 0:00:14]}  Nc3 {[%clk 0:00:25]} 35. a5 {[%clk 0:00:13]}  Kf6 {[%clk 0:00:19]} 36. Bc6 {[%clk 0:00:13]}  e5 {[%clk 0:00:18]} 37. Bxc3 {[%clk 0:00:10]}  dxc3 {[%clk 0:00:18]} 38. e4 {[%clk 0:00:10]}  fxe4 {[%clk 0:00:17]} 39. Bxe4 {[%clk 0:00:10]}  Bc7 {[%clk 0:00:17]} 40. a6 {[%clk 0:00:09]}  h6 {[%clk 0:00:17]} 41. Bd5 {[%clk 0:00:09]}  Ra3 {[%clk 0:00:17]} 42. Bc4 {[%clk 0:00:09]}  Ba5 {[%clk 0:00:17]} 43. Kf3 {[%clk 0:00:09]}  Ra1 {[%clk 0:00:17]} 44. Ke4 {[%clk 0:00:09]}  Rd1 {[%clk 0:00:17]} 45. Be2 {[%clk 0:00:07]}  Rd2 {[%clk 0:00:16]} 46. Rxd2 {[%clk 0:00:07]}  cxd2 {[%clk 0:00:17]} 47. Kd5 {[%clk 0:00:08]}  Bb6 {[%clk 0:00:15]} 48. f3 {[%clk 0:00:08]}  Bc7 {[%clk 0:00:13]} 49. Kxc5 {[%clk 0:00:08]}  Bb6+ {[%clk 0:00:13]} 50. Kc6 {[%clk 0:00:08]}  Bf2 {[%clk 0:00:14]} 51. g4 {[%clk 0:00:08]}  Kg5 {[%clk 0:00:14]} 52. Kd5 {[%clk 0:00:09]}  Kf4 {[%clk 0:00:15]} 53. Bd1 {[%clk 0:00:09]}  Bb6 {[%clk 0:00:15]} 54. Ke6 {[%clk 0:00:09]}  e4 {[%clk 0:00:14]} 55. fxe4 {[%clk 0:00:09]}  Kxe4 {[%clk 0:00:15]} 56. Kf7 {[%clk 0:00:09]}  Bd4 {[%clk 0:00:16]} 57. Kg6 {[%clk 0:00:09]}  Ke3 {[%clk 0:00:16]} 58. Kf5 {[%clk 0:00:09]}  Kf2 {[%clk 0:00:16]} 59. Ke4 {[%clk 0:00:10]}  Ke1 {[%clk 0:00:16]} 60. Bb3 {[%clk 0:00:08]}  Bf6 {[%clk 0:00:16]} 61. Kf5 {[%clk 0:00:08]}  d1=Q {[%clk 0:00:16]} 0-1


[Site "https://www.chess.com"]

[Event "Titled Tuesday Blitz October 12 2021"]
[White "Jacobson, Brandon"]
[Black "Moskalenko, Alexander"]
[WhiteFideId "30901561"]
[BlackFideId "4155351"]
[WhiteElo "2362"]
[BlackElo "2515"]
[Result "0-1"]
[Round "07"]
[TimeControl "180+1"]
[Date "2021.10.12"]
[WhiteClock "0:00:04"]
[BlackClock "0:00:17"]

1. d4 {[%clk 0:03:00]}  Nf6 {[%clk 0:02:59]} 2. c4 {[%clk 0:03:01]}  e6 {[%clk 0:03:00]} 3. Nf3 {[%clk 0:03:01]}  b6 {[%clk 0:03:00]} 4. g3 {[%clk 0:03:02]}  Bb7 {[%clk 0:03:00]} 5. Bg2 {[%clk 0:03:02]}  Be7 {[%clk 0:03:01]} 6. O-O {[%clk 0:03:03]}  O-O {[%clk 0:03:02]} 7. Re1 {[%clk 0:03:04]}  Na6 {[%clk 0:02:48]} 8. h4 {[%clk 0:03:04]}  c5 {[%clk 0:02:45]} 9. d5 {[%clk 0:03:04]}  exd5 {[%clk 0:02:45]} 10. Nh2 {[%clk 0:03:05]}  Nc7 {[%clk 0:02:39]} 11. Nc3 {[%clk 0:03:05]}  d6 {[%clk 0:02:38]} 12. cxd5 {[%clk 0:03:05]}  b5 {[%clk 0:02:39]} 13. e4 {[%clk 0:03:02]}  Nd7 {[%clk 0:02:36]} 14. h5 {[%clk 0:02:53]}  Re8 {[%clk 0:02:36]} 15. Ng4 {[%clk 0:02:49]}  Nf6 {[%clk 0:02:28]} 16. Ne3 {[%clk 0:02:49]}  b4 {[%clk 0:02:27]} 17. Ne2 {[%clk 0:02:49]}  Bf8 {[%clk 0:02:28]} 18. Qc2 {[%clk 0:02:44]}  Nxh5 {[%clk 0:02:27]} 19. Bf3 {[%clk 0:02:42]}  Nf6 {[%clk 0:02:27]} 20. Nc4 {[%clk 0:02:36]}  Nb5 {[%clk 0:01:35]} 21. a4 {[%clk 0:02:28]}  Nd4 {[%clk 0:01:31]} 22. Nxd4 {[%clk 0:02:26]}  cxd4 {[%clk 0:01:32]} 23. Bf4 {[%clk 0:02:23]}  Rc8 {[%clk 0:01:28]} 24. Qd3 {[%clk 0:02:17]}  Ba6 {[%clk 0:01:26]} 25. Rac1 {[%clk 0:02:18]}  Nxd5 {[%clk 0:01:16]} 26. exd5 {[%clk 0:02:19]}  Rxe1+ {[%clk 0:01:13]} 27. Rxe1 {[%clk 0:02:19]}  Bxc4 {[%clk 0:01:12]} 28. Qxd4 {[%clk 0:02:20]}  a5 {[%clk 0:01:10]} 29. Rc1 {[%clk 0:01:58]}  Bb3 {[%clk 0:00:55]} 30. Rxc8 {[%clk 0:01:36]}  Qxc8 {[%clk 0:00:56]} 31. Qb6 {[%clk 0:01:37]}  Qc5 {[%clk 0:00:26]} 32. Qd8 {[%clk 0:01:18]}  Bxd5 {[%clk 0:00:24]} 33. Be3 {[%clk 0:01:02]}  Qc2 {[%clk 0:00:22]} 34. Bxd5 {[%clk 0:00:52]}  Qd1+ {[%clk 0:00:23]} 35. Kh2 {[%clk 0:00:53]}  Qxd5 {[%clk 0:00:23]} 36. Bb6 {[%clk 0:00:53]}  Qb3 {[%clk 0:00:19]} 37. Bxa5 {[%clk 0:00:24]}  Qxa4 {[%clk 0:00:19]} 38. Qb6 {[%clk 0:00:19]}  b3 {[%clk 0:00:19]} 39. Bc3 {[%clk 0:00:12]}  h5 {[%clk 0:00:19]} 40. Qb8 {[%clk 0:00:11]}  h4 {[%clk 0:00:18]} 41. gxh4 {[%clk 0:00:10]}  Qxh4+ {[%clk 0:00:18]} 42. Kg2 {[%clk 0:00:11]}  Qg4+ {[%clk 0:00:18]} 43. Kf1 {[%clk 0:00:11]}  Qc4+ {[%clk 0:00:19]} 44. Kg2 {[%clk 0:00:12]}  d5 {[%clk 0:00:18]} 45. Be5 {[%clk 0:00:12]}  d4 {[%clk 0:00:16]} 46. Kh2 {[%clk 0:00:05]}  Qd5 {[%clk 0:00:16]} 47. Bf4 {[%clk 0:00:03]}  d3 {[%clk 0:00:16]} 48. Bd2 {[%clk 0:00:03]}  Qd6+ {[%clk 0:00:16]} 49. Qxd6 {[%clk 0:00:03]}  Bxd6+ {[%clk 0:00:17]} 50. Kg2 {[%clk 0:00:03]}  Be5 {[%clk 0:00:17]} 51. Kf3 {[%clk 0:00:04]}  Bxb2 {[%clk 0:00:17]} 52. Bc3 {[%clk 0:00:04]}  Bxc3 {[%clk 0:00:17]} 0-1


[Site "https://www.chess.com"]

[Event "Titled Tuesday Blitz October 12 2021"]
[White "Karttunen, Mika"]
[Black "Kollars, Dmitrij"]
[WhiteFideId "502081"]
[BlackFideId "12909572"]
[WhiteElo "2343"]
[BlackElo "2584"]
[Result "1-0"]
[Round "07"]
[TimeControl "180+1"]
[Date "2021.10.12"]
[WhiteClock "0:00:02"]
[BlackClock "0:00:02"]

1. c4 {[%clk 0:03:00]}  Nf6 {[%clk 0:03:00]} 2. d4 {[%clk 0:02:58]}  g6 {[%clk 0:03:01]} 3. f3 {[%clk 0:02:57]}  Bg7 {[%clk 0:03:01]} 4. e4 {[%clk 0:02:57]}  O-O {[%clk 0:03:02]} 5. Be3 {[%clk 0:02:57]}  d6 {[%clk 0:03:03]} 6. Nc3 {[%clk 0:02:57]}  c5 {[%clk 0:03:04]} 7. d5 {[%clk 0:02:56]}  Nbd7 {[%clk 0:03:02]} 8. Nge2 {[%clk 0:02:55]}  Ne5 {[%clk 0:03:02]} 9. Ng3 {[%clk 0:02:55]}  h5 {[%clk 0:03:02]} 10. Be2 {[%clk 0:02:53]}  h4 {[%clk 0:03:02]} 11. Nf1 {[%clk 0:02:53]}  e6 {[%clk 0:03:01]} 12. Nd2 {[%clk 0:02:31]}  exd5 {[%clk 0:03:00]} 13. cxd5 {[%clk 0:02:30]}  a6 {[%clk 0:03:01]} 14. a4 {[%clk 0:02:30]}  Bd7 {[%clk 0:03:01]} 15. O-O {[%clk 0:02:25]}  b5 {[%clk 0:03:01]} 16. axb5 {[%clk 0:02:23]}  axb5 {[%clk 0:03:02]} 17. Rxa8 {[%clk 0:02:15]}  Qxa8 {[%clk 0:03:03]} 18. Bxb5 {[%clk 0:02:15]}  Bxb5 {[%clk 0:02:59]} 19. Nxb5 {[%clk 0:02:15]}  Qb8 {[%clk 0:02:58]} 20. Qe2 {[%clk 0:02:00]}  h3 {[%clk 0:02:57]} 21. g3 {[%clk 0:01:53]}  c4 {[%clk 0:02:57]} 22. Na3 {[%clk 0:01:50]}  Qxb2 {[%clk 0:02:37]} 23. Naxc4 {[%clk 0:01:50]}  Nxc4 {[%clk 0:02:38]} 24. Qxc4 {[%clk 0:01:50]}  Nd7 {[%clk 0:02:37]} 25. Rb1 {[%clk 0:01:17]}  Qa3 {[%clk 0:02:34]} 26. Rb3 {[%clk 0:00:59]}  Qa5 {[%clk 0:02:21]} 27. Rb5 {[%clk 0:00:51]}  Qa8 {[%clk 0:02:16]} 28. Qc6 {[%clk 0:00:44]}  Qa2 {[%clk 0:01:35]} 29. Qc4 {[%clk 0:00:32]}  Qa3 {[%clk 0:01:03]} 30. Rb3 {[%clk 0:00:32]}  Qa5 {[%clk 0:01:04]} 31. Rb5 {[%clk 0:00:32]}  Qd8 {[%clk 0:01:04]} 32. Qf1 {[%clk 0:00:22]}  Ne5 {[%clk 0:00:48]} 33. Qxh3 {[%clk 0:00:19]}  Qc7 {[%clk 0:00:45]} 34. Qf1 {[%clk 0:00:19]}  Qc3 {[%clk 0:00:44]} 35. Rb3 {[%clk 0:00:17]}  Qc2 {[%clk 0:00:38]} 36. h3 {[%clk 0:00:17]}  f5 {[%clk 0:00:37]} 37. exf5 {[%clk 0:00:15]}  Rxf5 {[%clk 0:00:35]} 38. f4 {[%clk 0:00:15]}  Nf7 {[%clk 0:00:24]} 39. Qc4 {[%clk 0:00:14]}  Qd1+ {[%clk 0:00:23]} 40. Qf1 {[%clk 0:00:14]}  Qc2 {[%clk 0:00:18]} 41. Qc4 {[%clk 0:00:13]}  Qxc4 {[%clk 0:00:14]} 42. Nxc4 {[%clk 0:00:13]}  Rxd5 {[%clk 0:00:15]} 43. Kf2 {[%clk 0:00:14]}  Rd1 {[%clk 0:00:12]} 44. Ke2 {[%clk 0:00:13]}  Rh1 {[%clk 0:00:12]} 45. h4 {[%clk 0:00:13]}  d5 {[%clk 0:00:12]} 46. Nd2 {[%clk 0:00:10]}  Nd6 {[%clk 0:00:10]} 47. Rd3 {[%clk 0:00:09]}  Rh2+ {[%clk 0:00:08]} 48. Bf2 {[%clk 0:00:08]}  Ne4 {[%clk 0:00:04]} 49. Nxe4 {[%clk 0:00:07]}  dxe4 {[%clk 0:00:05]} 50. Rd7 {[%clk 0:00:06]}  Bf8 {[%clk 0:00:05]} 51. Kf1 {[%clk 0:00:05]}  Rh1+ {[%clk 0:00:04]} 52. Ke2 {[%clk 0:00:04]}  Ra1 {[%clk 0:00:04]} 53. Bd4 {[%clk 0:00:04]}  Ra3 {[%clk 0:00:03]} 54. Be3 {[%clk 0:00:04]}  Ra4 {[%clk 0:00:02]} 55. Rc7 {[%clk 0:00:04]}  Ra2+ {[%clk 0:00:02]} 56. Kf1 {[%clk 0:00:03]}  Ra3 {[%clk 0:00:03]} 57. Ke2 {[%clk 0:00:03]}  Rb3 {[%clk 0:00:03]} 58. Kf2 {[%clk 0:00:02]}  Rb2+ {[%clk 0:00:03]} 59. Ke1 {[%clk 0:00:03]}  Bb4+ {[%clk 0:00:04]} 60. Kf1 {[%clk 0:00:03]}  Rb1+ {[%clk 0:00:04]} 61. Ke2 {[%clk 0:00:03]}  Be1 {[%clk 0:00:02]} 62. g4 {[%clk 0:00:02]}  Bxh4 {[%clk 0:00:02]} 63. f5 {[%clk 0:00:03]}  Re1+ {[%clk 0:00:02]} 64. Kd2 {[%clk 0:00:03]}  g5 {[%clk 0:00:02]} 65. Rc4 {[%clk 0:00:02]} 1-0


[Site "https://www.chess.com"]